Cogmind - Beta 15 @@@ ROGUE MODE // 2025.05.11 @ 10:35:07 Player: Syanka Result: Destroyed by 90-7IX(R) with Subdweller Machine Gun Performance ------------- Evolutions (0) 0 Regions Visited (2) 400 Robots Destroyed (33) 165 Value Destroyed (572) 572 Prototype IDs (0) 0 Alien Tech Used (0) 0 Bonus (0) 0 TOTAL SCORE: 1137 Bonus ------- None Cogmind --------- Core Integrity 0/250 Matter 290/300 Energy 35/100 System Corruption 0% Temperature Cool (0) Movement Treading (160) Location -10/Subcaves Parts ------- > --- POWER (1) -------- (None) > --- PROPULSION (2) --- Light Treads Light Treads > --- UTILITY (2) ------ Large Storage Unit > --- WEAPON (2) ------- EM Pulse Gun Small Laser > --- INVENTORY (15) --- Wheel Small Storage Unit Medium Matter Pod (56) Structural Scanner Terrain Scanner Seismic Detector Scrap Shield Tractor Beam Tractor Beam Beam Cannon Mining Laser Peak State ------------ > --- POWER ------------ Light Ion Engine > --- PROPULSION ------- Light Treads Light Treads > --- UTILITY ---------- Large Storage Unit Seismic Detector > --- WEAPON ----------- Small Laser Small Laser > --- INVENTORY -------- Light Ion Engine Wheel Compact Wheel Small Storage Unit Small Matter Pod Structural Scanner Seismic Detector Tractor Beam EM Pulse Gun Grenade Launcher [Rating: 8] Favorites ----------- Power Ion Engine Engine Ion Engine Propulsion Light Treads Treads Light Treads Wheel Wheel Utility Seismic Detector Device Seismic Detector Storage Large Storage Unit Weapon EM Pulse Gun Energy Gun EM Pulse Gun Energy Cannon Beam Cannon Launcher Grenade Launcher Special Weapon Mining Laser Build | -11 -10 -10 ------- Run | Yrd Mat Sub Slots Evolved . | . . . Power . | . . . Propulsion . | . . . Utility . | . . . Weapon . | . . . Parts Attached 20 | 8 10 2 Power 3 | 1 1 1 Engine 3 | 1 1 1 Core . | . . . Reactor . | . . . Propulsion 4 | 3 . 1 Treads 3 | 2 . 1 Leg . | . . . Wheel 1 | 1 . . Hover . | . . . Flight . | . . . Utility 5 | 2 3 . Device 3 | 1 2 . Storage 2 | 1 1 . Processor . | . . . Hackware . | . . . Protection . | . . . Artifact . | . . . Weapon 8 | 2 6 . Energy Gun 4 | 2 2 . Energy Cannon 1 | . 1 . Ballistic Gun . | . . . Ballistic Cannon . | . . . Launcher 1 | . 1 . Special Weapon 2 | . 2 . Impact Weapon . | . . . Slashing Weapon . | . . . Piercing Weapon . | . . . Special Melee Weapon . | . . . Unidentified Prototypes . | . . . Parts Lost 5 | . . 5 Power 1 | . . 1 Propulsion 1 | . . 1 Utility 1 | . . 1 Weapon 2 | . . 2 Highest Loss Streak 3 | . . 3 To Critical Strikes . | . . . Average Backups 12 | 3 13 13 Power 1 | . 1 . Propulsion 1 | 1 1 2 Utility 5 | . 6 7 Weapon 3 | . 3 3 Tool/Special . | . . . Unused Backups 11 | . 5 6 Power . | . . . Propulsion 1 | . 1 . Utility 9 | . 3 6 Weapon 1 | . 1 . Tool/Special . | . . . Average Slot Usage (%) 98 | . 99 95 Engine 13 | . 14 13 Treads 28 | . 28 28 Device 13 | . 14 10 Storage 14 | . 14 14 Energy Gun 19 | . 17 24 Energy Cannon 2 | . 2 2 Special Weapon 5 | . 7 . Peak Build Rating 8 | 7 8 8 Average Rating 7 | 5 7 7 On Entrance 5 | . 7 8 Naked Turns . | . . . Heaviest Build 30 | 11 30 30 Greatest Support 40 | 40 40 40 Greatest Overweight (x) . | . . . Average Overweight (x) . | . . . Largest Inventory Capacity 15 | 8 15 15 Average Capacity 13 | 7 14 15 Most Carried 15 | 5 15 15 Average Carried 12 | 3 13 14 Final Capacity 15 | 8 15 15 Final Carried 15 | 5 15 12 Class Distribution -------------------- 100% | Mutant Dominant Class ---------------- Mutant | -10/Materials Mutant | -10/Subcaves Resources | -11 -10 -10 ----------- Run | Yrd Mat Sub Matter Collected 681 | 280 249 152 Remotely . | . . . Salvage Created 909 | 180 478 251 Parts 69 | 14 38 17 Haulers Intercepted 2 | . 2 . Recyclers Shooed 2 | 1 1 . Parts Field Recycled . | . . . Retrieved Matter . | . . . Parts Self-Destructed . | . . . Prevented . | . . . Kills | -11 -10 -10 ------- Run | Yrd Mat Sub Combat Hostiles Destroyed 16 | . 8 8 Guns 5 | . 2 3 Cannons 1 | . . 1 AOE 10 | . 6 4 Classes Destroyed 10 | 3 6 1 Worker 4 | 2 2 . Builder 1 | . 1 . Tunneler 4 | 3 1 . Hauler 2 | . 2 . Recycler 3 | 1 2 . Operator 1 | . 1 . Watcher 2 | . 2 . Swarmer 6 | . 6 . Grunt 2 | . 2 . Subdweller 8 | . . 8 Best Kill Streak 7 | 4 7 7 Combat Bots Only 7 | . 6 7 Max Kills in Single Turn 2 | 1 2 2 Gunslinging . | . . . Exploded 2 | . 2 2 Melee . | . . . Uniques/NPCs Destroyed . | . . . Combat | -11 -10 -10 -------- Run | Yrd Mat Sub Hostile Shots Fired 79 | . 31 48 Missed 31 | . 13 18 Hits 48 | . 18 30 Projectile 48 | . 18 30 Critical Strikes 2 | . 1 1 Damage Taken 927 | . 239 688 Core 260 | . 45 215 Absorbed by Shields . | . . . Core Remaining (%) 100 | 100 . . Volleys Fired 99 | 17 56 26 Largest 2 | 2 2 2 Hottest 100 | 80 100 100 Shots Fired 160 | 34 86 40 Gun 121 | 34 61 26 Cannon 14 | . 6 8 Launcher 10 | . 5 5 Special 15 | . 14 1 Kinetic . | . . . Thermal 103 | 34 53 16 Explosive 10 | . 5 5 Electromagnetic 47 | . 28 19 Robot Hit Streak 30 | 6 6 30 Robot Miss Streak 3 | 3 3 1 Penetration Max . | . . . Secondary Targets . | . . . Shots Hit Robots 91 | 21 40 30 Core Hits 56 | 7 28 21 Critical Kills . | . . . Critical Parts Destroyed . | . . . Critical Strikes 1 | . 1 . Corrupt 1 | . 1 . Melee Attacks . | . . . Impact . | . . . Slashing . | . . . Piercing . | . . . Sneak Attacks . | . . . Combat Hostiles . | . . . Follow-up Attacks . | . . . Damage Inflicted 2254 | 222 1067 965 Guns 891 | 222 438 231 Cannons 139 | . 35 104 Explosions 1128 | . 498 630 Melee . | . . . Ramming . | . . . Kinetic . | . . . Thermal 860 | 222 468 170 Explosive 951 | . 341 610 Electromagnetic 443 | . 258 185 Impact . | . . . Slashing . | . . . Piercing . | . . . Highest Corruption . | . . . Average Corruption . | . . . Corruption Purged . | . . . Corruption Blocked . | . . . Overload Shots . | . . . Overflow Damage 52 | . 50 2 Projectiles 22 | . 22 . Explosions 30 | . 28 2 Melee . | . . . Knockbacks . | . . . Impact . | . . . Kinetic . | . . . Secondary . | . . . Self-Inflicted Damage 131 | . 57 74 Shots 6 | . 2 4 Rammed . | . . . Targets Rammed . | . . . Kicked . | . . . Crushed . | . . . Highest Temperature 144 | 144 100 . Average Temperature 38 | 55 33 . Received Heat Transfer 108 | . 48 60 Siege Activations . | . . . Martial Activations . | . . . Shielding Activations . | . . . Robots Disrupted . | . . . Combat Hostiles . | . . . Robots Corrupted . | . . . Combat Hostiles . | . . . Parts Fried 2 | . 2 . Impact Corruptions . | . . . Robots Melted . | . . . Combat Hostiles . | . . . Parts Melted . | . . . Heat Transferred 1771 | 525 874 372 Parts Sabotaged . | . . . Parts Stolen . | . . . Parts Stripped . | . . . Power Chain Reactions 3 | . 2 1 Alert | -11 -10 -10 ------- Run | Yrd Mat Sub Maximum Alert Level . | . . . Low Security (%) 100 | 100 100 . Level 1 . | . . . Level 2 . | . . . Level 3 . | . . . Level 4 . | . . . Level 5 . | . . . High Security . | . . . Max Security . | . . . Peak Influence 175 | 10 175 . Initial . | . . . Average 50 | . 58 . Influence Increases 372 | 30 342 . Destroy 0b10 Robot/C 160 | . 160 . Destroy 0b10 Robot/NC 80 | 30 50 . Destroy Leader 38 | . 38 . Successful Hack 26 | . 26 . Disable Machine 30 | . 30 . Destroy Structure 38 | . 38 . Influence Decreases 372 | 30 264 78 Entered New Map 38 | . . 38 Time Decay 334 | 30 264 40 Squads Dispatched . | . . . Investigation . | . . . Extermination . | . . . Reinforcement . | . . . Assault . | . . . Garrison . | . . . Intercept . | . . . Searches Triggered . | . . . Construction Impeded . | . . . Haulers Reinforced . | . . . Active Scanning Responses . | . . . Cargo Convoy Interrupts . | . . . Stealth | -11 -10 -10 --------- Run | Yrd Mat Sub Distress Signals . | . . . Communications Jammed . | . . . Distress Signals . | . . . Times Spotted 27 | . 16 11 Peak Tracking Total 7 | . 4 7 Tactical Retreats . | . . . Traps | -11 -10 -10 ------- Run | Yrd Mat Sub Traps Triggered . | . . . Indirectly . | . . . Trap Hack Attempts . | . . . Triggered . | . . . Disarmed . | . . . Reprogrammed . | . . . Reused . | . . . Traps Extracted . | . . . Installed . | . . . Triggered . | . . . Machines | -11 -10 -10 ---------- Run | Yrd Mat Sub Machines Disabled 2 | . 2 . Max in Single Turn 1 | . 1 . Machines Repaired . | . . . Machines Dismantled . | . . . Machines Sabotaged . | . . . Overloaded Fab Kills . | . . . Hacking | -11 -10 -10 --------- Run | Yrd Mat Sub Machines Accessed 11 | . 9 2 Terminals 8 | . 8 . Fabricators . | . . . Repair Stations . | . . . Recycling Units 1 | . 1 . Scanalyzers . | . . . Garrison Access . | . . . Total Hacks 28 | . 25 3 Successful 17 | . 14 3 Failed 11 | . 11 . Catastrophic 3 | . 3 . Database Lockouts . | . . . Manual 21 | . 21 . Terminals 23 | . 23 . Fabricators . | . . . Repair Stations . | . . . Recycling Units 2 | . 2 . Scanalyzers . | . . . Garrison Access . | . . . Terminal Hacks 7 | . 4 3 Record 2 | . 1 1 Part Schematic 1 | . 1 . Robot Analysis 1 | . 1 . Open Door 1 | . . 1 Locate Traps 1 | . 1 . Release Object 1 | . . 1 Fabricator Hacks . | . . . Repair Station Hacks . | . . . Recycling Unit Hacks . | . . . Scanalyzer . | . . . Garrison Access Hacks . | . . . Unauthorized Hacks 10 | . 10 . Terminals 10 | . 10 . Assimilate 3 | . 3 . Botnet 1 | . 1 . Operators 1 | . 1 . Skim 5 | . 5 . Fabricators . | . . . Repair Stations . | . . . Recycling Units . | . . . Scanalyzers . | . . . Garrison Access . | . . . Data Cores Recovered . | . . . Used . | . . . Hacking Detections 9 | . 9 . Full Trace Events . | . . . Feedback Events . | . . . Feedback Blocked . | . . . Robot Schematics Acquired . | . . . Robots Built . | . . . Authchips . | . . . Time . | . . . Total Robot Build Rating . | . . . Part Schematics Acquired 1 | . 1 . Parts Built . | . . . Authchips . | . . . Time . | . . . Total Part Build Rating . | . . . Parts Repaired . | . . . Time . | . . . Parts Recycled . | . . . Recycled Matter . | . . . Retrieved Matter . | . . . Retrieved Components . | . . . Parts Scanalyzed . | . . . Part Schematics Acquired . | . . . Parts Damaged . | . . . Bothacking | -11 -10 -10 ------------ Run | Yrd Mat Sub Used RIF Installer . | . . . Robots Hacked . | . . . Non-combat . | . . . Combat . | . . . Robot Hacks Applied . | . . . Relay Couplers Released . | . . . Fabnet Peak Effective % . | . . . Robots Rewired . | . . . Allies Hacked . | . . . Hacks Repelled . | . . . Allies | -11 -10 -10 -------- Run | Yrd Mat Sub Total Allies 1 | . 1 . Largest Group 1 | . 1 . Highest-Rated Group 10 | . 10 . Highest-Rated Ally 10 | . 10 . Total Orders . | . . . Ally Attacks . | . . . Total Damage . | . . . Kills . | . . . Allies Corrupted . | . . . Allies Melted . | . . . Intel | -11 -10 -10 ------- Run | Yrd Mat Sub Active Infowar (turns) 2028 | 93 1461 474 Structural 15 | . 15 . Seismic 2013 | 93 1446 474 Robot Analysis Total 1 | . 1 . Derelict Logs Recovered . | . . . Drone Launches . | . . . Drone Recoveries . | . . . Exploration | -11 -10 -10 ------------- Run | Yrd Mat Sub Turns Passed 2335 | 255 1461 619 Spaces Moved 1033 | 121 730 182 Core 1 | 1 . . Treads 1027 | 115 730 182 Legs . | . . . Wheels 5 | 5 . . Hover . | . . . Flight . | . . . Fastest Speed 50 | 50 160 160 Average Speed 159 | 155 160 160 Slowest Speed 160 | 160 160 160 Overloaded Moves . | . . . Propulsion Burnouts . | . . . Robots Hopped . | . . . Potential Cave-ins . | . . . Cave-ins Triggered . | . . . Exploration Rate (%) 36 | 6 95 8 Regions Visited 2 Branch Regions 1 Pre-discovered Areas 1 | . 1 . Known Exits Taken 1 | . 1 . Unknown Exits Taken 1 | 1 . . Scrap Searched . | . . . Spaces Dug 13 | . 11 2 Terrain Destroyed 70 | . 34 36 Melee . | . . . Projectile 6 | . 6 . AOE 64 | . 28 36 Terrain Rammed . | . . . Walls Destroyed . | . . . Machines Disabled . | . . . Actions | -11 -10 -10 --------- Run | Yrd Mat Sub Total 1525 | 150 907 468 Wait 328 | . 81 247 Move 1031 | 120 729 182 Hop . | . . . Pick Up 23 | 5 16 2 Fast Attach 7 | 7 . . Attach 4 | . 1 3 Detach 1 | . 1 . Swap 20 | 1 15 4 Drop 11 | . 8 3 Fire 99 | 17 56 26 Melee . | . . . Ram . | . . . Kick . | . . . Crush . | . . . Escape Stasis . | . . . Rewire . | . . . Trap . | . . . Miscellaneous 1 | . . 1 Route ------- -11/Scrapyard -10/Materials (discovered 6 exits: *Mat x3 / [*Min x2] / *Sub) -10/Subcaves (discovered 1 exit: [*Mat]) History --------- Turn | Location | Event 16 | -11/Scrapyard | Discovered new exit (range 15) 256 | -11/Scrapyard | Entered Materials 314 | -10/Materials | Build established: Mutant 598 | -10/Materials | Discovered new exit (range 6) 705 | -10/Materials | Discovered new exit (range 16) 871 | -10/Materials | Discovered new exit (range 13) 1156 | -10/Materials | Discovered new exit (range 6) 1232 | -10/Materials | Learned Storage security intel 1297 | -10/Materials | Loaded intel: 2 recycling unit locations 1353 | -10/Materials | Learned 2 Storage zone layouts 1400 | -10/Materials | Learned 2 Storage zone layouts 1437 | -10/Materials | Identified exit to Subcaves 1437 | -10/Materials | Identified exit to Materials 1465 | -10/Materials | Loaded intel: 8 terminal locations 1502 | -10/Materials | Learned location of 3 exits from Materials 1605 | -10/Materials | Learned Storage trap positions 1717 | -10/Materials | Entered Subcaves 1786 | -10/Subcaves | Released subatomizers from SUBCON Basin 2185 | -10/Subcaves | Ambushed by swarm of Subdwellers 2190 | -10/Subcaves | Ambushed by Subdwellers from Twisted Machinery 2201 | -10/Subcaves | Core integrity fell below 50% 2212 | -10/Subcaves | Ambushed by Subdweller buried in earth 2239 | -10/Subcaves | Lost 3 parts (1u2w) 2266 | -10/Subcaves | Discovered new exit (range 13) 2268 | -10/Subcaves | Destroyed 7 combat bots 2268 | -10/Subcaves | Core integrity fell below 20% 2336 | -10/Subcaves | Destroyed by 90-7IX(R) with Subdweller Machine Gun Last Messages --------------- 02227_ GT-I2E(R): "ARGHSUB!" 02227_ The unstable cave ceiling collapses. 02228_ JK-RLE(R) destroyed. 02239_ GT-I2E(R) destroyed. 02247_ 3V-O11(R) destroyed. 02250_ Acquired 77 matter. 02257_ Acquired 23 matter. 02259_ Subatomizers dissect the Corrupted Sub. Optics. 02263_ The unstable cave ceiling collapses. 02263_ Acquired 2 matter. 02265_ Acquired 6 matter. 02266_ EXIT=FOUND 02269_ Subatomizers dissect the Corrupted Sub. Optics. 02271_ G3-4AU(R) destroyed. 02284_ Chain reaction triggered in Ion Engine. 02320_ Lgt. Ion Engine destroyed. 02330_ 90-7IX(R) misfires. 02332_ Lgt. Treads destroyed. Map ----- +----------------------------------------------------+ | #### ##& #!#?????????????????????????????????? | | # ##??#######&[##???####????????"????????????????? | | ###?????????##!!#### ##?????? ""????????????????? | | ?????????????## =#% #??##